bitfinex/quotes_ETHUSD_20240709
["timestamp","ask_amount","ask_price","bid_price","bid_amount"]
[1720560816577,2.93483906,3074.1,3073.9,1.183]
[1720560816790,2.04204909,3074.4,3073.9,1.183]
[1720560816791,1.23313149,3074.0,3073.9,1.183]
[1720560817159,1.23313149,3074.0,3073.8,3.5215]
[1720560817361,1.23313149,3073.9,3073.8,3.5215]
[1720560817793,2.48149,3074.5,3073.8,3.5215]
[1720560817987,1.12720572,3073.9,3073.8,3.5215]
[1720560818188,1.23323771,3073.9,3073.8,3.5215]
[1720560821222,2.2559,3074.5,3073.8,3.5215]
[1720560821401,1.23327559,3073.9,3073.8,3.5215]
[1720560821602,1.69993709,3074.1,3073.8,3.5215]
[1720560821908,1.23324539,3074.0,3073.8,3.5215]
[1720560822086,1.23324539,3073.9,3073.8,3.5215]
[1720560822287,2.2559,3074.5,3073.8,3.5215]
[1720560822524,1.69989618,3074.1,3073.8,3.5215]
[1720560822698,1.23325403,3074.0,3073.8,3.5215]
[1720560822911,1.23325403,3073.9,3073.8,3.5215]
[1720560824513,2.48149,3074.5,3073.8,3.5215]
[1720560824514,2.48149,3074.5,3073.8,1.183]
[1720560824714,1.12724298,3073.9,3073.8,1.183]
[1720560825024,0.10600525,3073.9,3073.8,1.183]
[1720560825222,1.23324823,3073.9,3073.7,1.183]
[1720560825446,1.69922974,3074.1,3073.7,1.183]
[1720560825447,1.23324823,3073.8,3073.7,1.183]
[1720560828046,1.23328068,3073.8,3073.7,1.183]
[1720560831214,0.248149,3074.4,3073.7,1.183]
[1720560831516,1.69860612,3074.0,3073.7,1.183]
[1720560831717,0.10600547,3073.9,3073.7,1.183]
[1720560832038,0.8004049,3074.3,3073.7,1.183]
[1720560832039,1.23332045,3073.8,3073.7,1.183]
[1720560833324,1.23333053,3073.8,3073.7,1.183]
[1720560834706,1.23335987,3073.8,3073.7,1.183]
[1720560835132,1.23335987,3073.8,3073.4,2.3292]
[1720560835133,1.23335987,3073.8,3073.5,1.183]
[1720560835367,1.23335987,3073.7,3073.5,1.183]
[1720560835577,1.23335987,3073.6,3073.5,1.183]
[1720560838086,1.23334893,3073.6,3073.5,1.183]
[1720560838399,1.23335596,3073.6,3073.5,1.183]
[1720560840864,1.23334257,3073.6,3073.5,1.183]
[1720560841265,2.3847,3074.1,3073.5,1.183]
[1720560841505,2.93156556,3074.0,3073.5,1.183]
[1720560841705,1.23333181,3073.9,3073.5,1.183]
[1720560841864,1.23333181,3073.8,3073.5,1.183]
[1720560842198,1.69823375,3074.0,3073.0,13.72406]
[1720560842199,1.23333181,3073.7,3073.1,2.4066]
[1720560842360,1.23333181,3073.6,3073.5,1.183]
[1720560844079,1.23332895,3073.6,3073.5,1.183]
[1720560847401,1.23336539,3073.6,3073.5,1.183]
[1720560850526,4.42412122,3074.1,3073.5,1.183]
[1720560850527,2.3847,3074.1,3073.5,1.183]
[1720560850734,1.70004127,3073.8,3073.5,1.183]
[1720560850935,1.2333876,3073.7,3073.5,1.183]
[1720560851105,1.2333814,3073.6,3073.5,1.183]
[1720560851946,1.23337957,3073.6,3073.5,1.183]
[1720560854253,1.23337664,3073.6,3073.5,1.183]
[1720560857511,1.23338273,3073.6,3073.5,1.183]
[1720560857844,1.23338269,3073.6,3073.5,1.183]
[1720560858206,1.23338741,3073.6,3073.5,1.183]
[1720560859237,2.93445335,3073.6,3073.5,1.183]
[1720560860318,4.02704333,3073.6,3073.5,1.183]
[1720560860529,6.76334766,3073.6,3073.5,1.183]
[1720560860758,2.73630433,3073.6,3073.1,1.183]
[1720560861055,1.70171044,3073.2,3073.1,1.183]
[1720560861253,2.73630433,3073.6,3073.1,1.183]
[1720560861459,2.04183066,3073.4,3073.1,1.183]
[1720560861664,1.12752746,3073.3,3073.1,1.183]
[1720560862023,1.12754223,3073.2,3072.9,1.183]
[1720560862362,2.82856144,3073.1,3072.9,1.183]
[1720560862521,1.12754223,3073.0,3072.9,1.183]
[1720560863258,1.12754223,3073.0,3072.8,1.183]
[1720560863456,2.82856144,3073.0,3072.8,1.183]
[1720560863786,1.12754223,3072.9,3072.8,1.183]
[1720560864080,1.70101921,3073.0,3072.8,1.183]
[1720560864372,1.12761252,3072.9,3072.8,1.183]
[1720560866117,1.12761252,3072.9,3072.8,3.4696]
[1720560867333,0.49893662,3073.4,3072.8,3.4696]
[1720560867537,1.69971802,3073.1,3072.8,3.4696]
[1720560867758,1.12759226,3073.0,3072.8,3.4696]
[1720560867965,1.12759226,3072.9,3072.8,3.4696]
[1720560870642,1.69971802,3073.2,3072.8,3.4696]
[1720560870841,1.12759574,3073.1,3072.8,3.4696]
[1720560871036,0.55,3073.3,3072.8,3.4696]
[1720560871244,1.12758881,3073.0,3072.8,3.4696]
[1720560871483,1.12758881,3072.9,3072.8,3.4696]
[1720560871802,1.69961795,3073.3,3072.9,2.3808]
[1720560871941,1.12742697,3073.2,3073.0,1.183]
[1720560872140,1.12741558,3073.1,3072.9,2.73718]
[1720560872438,1.69967819,3073.5,3073.1,1.183]
[1720560872644,1.12740794,3073.4,3073.1,1.183]
[1720560872845,1.12740794,3073.3,3073.1,1.183]
[1720560873165,1.12740794,3073.2,3073.1,1.183]
[1720560873348,1.12740794,3073.4,3073.1,3.955818]
[1720560873555,1.69967819,3073.7,3073.3,1.183]
[1720560873882,0.34085102,3073.8,3073.3,1.183]
[1720560874043,2.82729967,3073.6,3073.3,1.183]
[1720560874244,1.12736732,3073.5,3073.3,1.183]
[1720560875274,1.12736732,3073.5,3073.4,2.3631]
[1720560877276,5.401,3074.2,3073.4,2.3631]
[1720560877480,5.401,3074.2,3073.6,1.183]
[1720560877481,1.70155463,3073.9,3073.6,1.183]
[1720560877654,1.12729665,3073.8,3073.6,1.183]
[1720560877851,2.82885128,3073.8,3073.6,1.183]
[1720560878055,1.12729665,3073.7,3073.6,1.183]
[1720560878762,1.12729665,3073.8,3073.6,1.183]
[1720560878963,1.12729665,3073.7,3073.6,1.183]
[1720560879141,1.12729665,3073.8,3073.6,1.183]
[1720560879369,1.12729665,3073.7,3073.6,1.183]
[1720560880805,1.12729665,3073.7,3073.6,3.91101]
[1720560880806,1.12729505,3073.7,3073.6,3.91101]
[1720560881005,1.70161074,3074.3,3073.9,2.3734]
[1720560881209,2.38225504,3074.8,3073.9,2.3734]
[1720560881210,1.12709913,3074.2,3073.9,2.3734]
[1720560881412,1.7018538,3074.5,3074.1,1.183]
[1720560881584,1.12704633,3074.4,3074.3,1.183]
[1720560883872,2.456,3074.9,3074.3,1.183]
[1720560884073,1.12703551,3074.4,3074.3,1.183]
[1720560887412,1.12706029,3074.4,3074.3,1.183]
[1720560888144,2.24879583,3074.8,3074.3,1.183]
[1720560888293,1.12705925,3074.7,3074.3,1.183]
[1720560888489,1.12705925,3074.6,3074.3,1.183]
[1720560888687,1.12705925,3074.5,3074.3,1.183]
[1720560889021,2.78732559,3074.8,3074.3,1.183]
[1720560889228,1.12706124,3074.7,3074.3,1.183]
[1720560889400,1.12706124,3074.6,3074.3,1.183]
[1720560889729,1.12706124,3074.5,3074.3,1.183]
[1720560890028,2.78732559,3074.8,3074.3,1.183]
[1720560890232,1.12705271,3074.7,3074.3,1.183]
[1720560890405,1.12705271,3074.6,3074.3,1.183]
[1720560890733,1.12705094,3074.5,3074.3,1.183]
[1720560891034,1.08852976,3074.8,3074.3,3.6543]
[1720560891194,1.12705038,3074.7,3074.3,3.6543]
[1720560891531,1.12705038,3074.6,3074.3,3.6543]
[1720560891696,1.12705038,3074.5,3074.3,3.6543]
[1720560891902,2.78610977,3074.8,3074.3,3.6543]
[1720560892108,1.12705038,3074.7,3074.3,3.6543]
[1720560892416,1.12705038,3074.6,3074.3,3.6543]
[1720560892610,1.12705038,3074.7,3074.3,3.6543]
[1720560893244,1.12705038,3074.7,3074.3,1.183]
[1720560894056,1.08852976,3074.8,3074.3,1.183]
[1720560894351,1.12706265,3074.7,3074.3,1.183]
[1720560894844,1.12706265,3074.6,3074.3,1.183]
[1720560895018,1.12706265,3074.5,3074.3,1.183]
[1720560895220,1.08852976,3074.8,3074.3,1.183]
[1720560895419,1.12706144,3074.7,3074.3,1.183]
[1720560895621,1.12706144,3074.6,3074.3,1.183]
[1720560895823,1.12706144,3074.7,3074.3,1.183]
[1720560900721,1.12701944,3074.6,3074.3,1.183]
[1720560901008,1.12701944,3074.5,3074.3,1.183]
[1720560901248,1.12701944,3074.4,3074.3,1.183]
[1720560903461,1.12705442,3074.4,3074.3,1.183]
[1720560906574,1.12705442,3074.4,3074.1,2.2606]
[1720560906861,0.55,3074.8,3074.3,1.183]
[1720560907068,1.12712326,3074.7,3074.3,1.183]
[1720560907237,1.12712326,3074.6,3074.3,1.183]
[1720560907441,1.12712326,3074.5,3074.1,2.2606]
[1720560907741,1.12712326,3074.4,3074.3,1.183]
[1720560908753,1.12712326,3074.4,3074.1,1.183]
[1720560908922,2.4484,3074.2,3073.9,1.183]
[1720560909128,1.12712326,3074.1,3073.7,1.183]
[1720560909324,1.53967559,3074.1,3073.7,1.183]
[1720560909533,1.12712326,3074.0,3073.7,1.183]
[1720560910049,1.12732883,3073.9,3073.7,1.183]
[1720560910382,0.41255233,3074.1,3073.7,1.183]
[1720560910583,1.1273235,3073.8,3073.7,1.183]
[1720560910939,1.1273235,3074.0,3073.7,1.183]
[1720560911157,1.1273229,3073.9,3073.7,1.183]
[1720560911676,0.41255233,3074.1,3073.7,1.183]
[1720560913679,1.12733136,3074.0,3073.7,1.183]
[1720560913879,1.12733136,3073.9,3073.7,1.183]
[1720560914074,1.12733136,3074.0,3073.7,1.183]
[1720560914385,1.12733136,3073.9,3073.7,1.183]
[1720560914555,1.12733136,3074.0,3073.7,1.183]
[1720560915775,0.41255233,3074.1,3073.7,1.183]
[1720560916066,1.12734756,3074.0,3073.7,1.183]
[1720560916252,1.12734756,3073.9,3073.7,1.183]
[1720560916453,1.12734756,3074.0,3073.7,1.183]
[1720560916658,1.12734756,3073.9,3073.7,1.183]
[1720560916857,1.12734756,3074.0,3073.7,1.183]
[1720560917088,1.12734756,3073.9,3073.7,1.183]
[1720560917319,1.42718756,3074.1,3073.7,1.183]
[1720560917620,1.12734756,3074.0,3073.7,1.183]
[1720560917784,1.12734756,3074.1,3073.7,1.183]
[1720560917988,1.12734756,3074.0,3073.7,1.183]
[1720560918209,1.12734756,3073.9,3073.7,1.183]
[1720560918524,1.12734756,3073.8,3073.7,1.183]
[1720560919273,1.12733887,3073.8,3073.7,1.183]
[1720560920978,1.23335629,3073.8,3073.7,1.183]
[1720560922815,2.4484,3074.2,3073.7,1.183]
[1720560922971,1.12733863,3073.8,3073.7,1.183]
[1720560923176,1.23336961,3073.8,3073.7,1.183]
[1720560923373,1.23336847,3073.8,3073.7,1.183]
[1720560925104,2.93182414,3073.8,3073.7,1.183]
[1720560925415,1.23336847,3073.8,3073.7,1.183]
[1720560926275,0.55,3074.1,3073.7,1.183]
[1720560926476,1.69807804,3073.9,3073.7,1.183]
[1720560926718,1.23335788,3073.8,3073.7,1.183]
[1720560929617,2.93143592,3073.8,3073.3,2.4809]
[1720560929819,1.23341022,3073.7,3073.4,1.183]
[1720560929986,1.23341022,3073.6,3073.4,1.183]
[1720560930190,1.23341022,3073.5,3073.4,1.183]
[1720560933112,1.12749397,3073.5,3073.4,1.183]
[1720560933278,1.23349969,3073.5,3073.4,1.183]
[1720560933478,1.23349969,3073.5,3073.1,2.3816]
[1720560933479,2.4655,3073.8,3073.1,2.3816]
[1720560933711,1.69718578,3073.6,3073.2,1.183]
[1720560933910,1.23351303,3073.5,3073.2,1.183]
[1720560934117,1.23351303,3073.4,3073.2,1.183]
[1720560934418,1.23351303,3073.3,3073.2,1.183]
[1720560936622,0.1059979,3073.3,3073.2,1.183]
[1720560936985,1.23354803,3073.3,3073.2,1.183]
[1720560937822,1.23354803,3073.3,3073.0,1.183]
[1720560938017,1.23354803,3073.2,3073.0,1.183]
[1720560938204,1.23354803,3073.1,3073.0,1.183]
[1720560939994,1.23358225,3073.1,3073.0,1.183]
[1720560943345,2.3528,3073.6,3073.0,1.183]
[1720560943538,1.696025,3073.4,3073.0,1.183]
[1720560943748,1.78359277,3073.3,3073.0,1.183]
[1720560944060,1.23358147,3073.2,3073.0,1.183]
[1720560944338,1.23358147,3073.1,3073.0,1.183]
[1720560944719,1.23358039,3073.1,3073.0,1.183]
[1720560946734,0.55,3073.3,3073.0,1.183]
[1720560946944,1.23359652,3073.2,3073.0,1.183]
[1720560947137,0.10599227,3073.1,3073.0,1.183]
[1720560947455,1.23359652,3073.1,3073.0,1.183]
[1720560950227,1.2336006,3073.1,3073.0,1.183]
[1720560952276,1.2336006,3073.1,3072.2,7.47]
[1720560952483,1.2336006,3073.0,3072.8,1.183]
[1720560952777,1.2336006,3072.9,3072.8,1.183]
[1720560953688,1.23362817,3072.9,3072.4,2.4876]
[1720560953983,2.3726,3073.2,3072.4,2.4876]
[1720560953984,2.71347609,3073.2,3072.4,2.4876]
[1720560954287,1.69749311,3072.8,3072.5,1.183]
[1720560954489,1.23368662,3072.7,3072.5,1.183]
[1720560954785,1.23368937,3072.6,3072.5,1.183]
[1720560956885,2.3423,3072.9,3072.5,1.183]
[1720560957086,1.69654024,3072.7,3072.5,1.183]
[1720560957291,1.23374073,3072.6,3072.5,1.183]
[1720560958103,1.23374073,3072.6,3072.3,1.183]
[1720560958259,1.23374073,3072.5,3072.3,1.183]
[1720560958468,1.23374073,3072.4,3072.3,1.183]
[1720560959163,1.23374073,3072.4,3072.3,3.5926]
[1720560959366,1.12783477,3072.4,3072.3,3.95186]
[1720560959574,4.69654024,3073.1,3072.4,2.4096]
[1720560959867,1.23358669,3073.0,3072.7,1.183]
[1720560960066,1.23358669,3072.9,3072.7,1.183]
[1720560960263,1.23355833,3072.8,3072.7,1.183]
[1720560961198,1.23355833,3072.8,3072.7,3.5104]
[1720560962804,1.23351903,3072.8,3072.7,3.5104]
[1720560963308,1.12761348,3072.8,3072.7,3.5104]
[1720560963512,1.23351438,3072.8,3072.7,3.5104]
[1720560963876,4.69591953,3073.1,3072.7,3.5104]
[1720560963877,3.0,3073.1,3072.7,3.5104]
[1720560964122,1.23350593,3073.0,3072.7,3.5104]
[1720560964279,1.23350593,3072.9,3072.7,3.5104]
[1720560964474,1.12761714,3072.8,3072.7,3.5104]
[1720560964723,1.23350713,3072.8,3072.7,3.5104]
[1720560964876,1.12761714,3072.8,3072.7,3.5104]
[1720560965078,1.23350315,3072.8,3072.7,3.5104]
[1720560965282,1.12761714,3072.8,3072.7,3.5104]
[1720560965483,1.23350301,3072.8,3072.7,3.5104]
[1720560965782,1.23350293,3072.8,3072.7,3.5104]
[1720560966237,1.23348298,3072.8,3072.7,3.5104]
[1720560968430,1.23348298,3072.8,3072.7,1.183]
[1720560968660,1.23348298,3072.8,3072.5,1.183]
[1720560968858,1.23348298,3072.7,3072.5,1.183]
[1720560968998,0.10588639,3072.6,3072.5,1.183]
[1720560969341,1.23348298,3072.6,3072.5,1.183]
[1720560969647,1.23362364,3072.6,3072.5,1.183]
[1720560972851,3.0,3073.1,3072.5,1.183]
[1720560973059,2.9317431,3073.0,3072.5,1.183]
[1720560973352,2.37863466,3073.2,3072.5,1.183]
[1720560973353,1.80407963,3072.9,3072.5,1.183]
[1720560973575,3.0,3073.1,3072.5,1.183]
[1720560973879,1.69837191,3072.9,3072.5,1.183]
[1720560974039,0.34087609,3073.2,3072.5,1.183]
[1720560974379,1.69817007,3072.9,3072.5,1.55061]
[1720560974535,0.10593033,3072.8,3072.5,1.183]
[1720560974736,1.23359636,3072.8,3072.5,1.183]
[1720560974937,1.23359636,3072.7,3072.5,1.183]
[1720560975138,1.23359636,3072.6,3072.5,1.183]
[1720560976351,2.4611,3073.1,3072.5,1.183]
[1720560976547,1.69955525,3072.8,3072.5,1.183]
[1720560976876,1.23367079,3072.7,3072.5,1.183]
[1720560977081,1.23367079,3072.6,3072.5,1.183]
[1720560979773,0.10596833,3072.6,3072.5,1.183]
[1720560979979,1.12766346,3072.6,3072.5,1.183]
[1720560980138,1.23365462,3072.6,3072.5,1.183]
[1720560983391,1.23365112,3072.6,3072.5,1.183]
[1720560983797,1.70097669,3072.8,3072.5,1.183]
[1720560983954,1.23365309,3072.7,3072.5,1.183]
[1720560984295,1.23365309,3072.6,3072.5,1.183]
[1720560984591,1.23364394,3072.6,3072.5,1.183]
[1720560986064,1.23364394,3072.6,3072.5,7.27148]
[1720560986327,1.70097669,3073.3,3072.6,2.3307]
[1720560986532,1.23344155,3073.2,3072.6,2.3307]
[1720560986837,1.70137408,3073.3,3073.1,3.5854]
[1720560987141,1.23343976,3073.2,3073.1,3.5854]
[1720560989506,1.23343976,3073.2,3073.1,2.4024]
[1720560989731,1.23343976,3073.2,3073.1,3.5854]
[1720560990134,0.34056049,3073.7,3073.1,3.5854]
[1720560990300,1.12748726,3073.2,3073.1,3.5854]
[1720560990629,1.23349482,3073.2,3073.1,3.5854]
[1720560991604,1.23349482,3073.2,3073.1,1.183]
[1720560993351,0.55,3073.6,3073.1,1.183]
[1720560993665,1.70013311,3073.4,3073.1,1.183]
[1720560993862,0.55,3073.6,3073.1,1.183]
[1720560994028,1.70021454,3073.4,3073.1,1.183]
[1720560994223,1.23348739,3073.3,3073.1,1.183]
[1720560994563,1.23348971,3073.2,3073.1,1.183]
[1720560996925,1.23352896,3073.2,3073.1,1.183]
[1720561000351,1.23346265,3073.2,3073.1,1.183]
[1720561003574,0.34056049,3073.7,3073.1,1.183]
[1720561003748,1.69919816,3073.5,3073.3,1.183]
[1720561003947,1.23340645,3073.4,3073.3,1.183]
[1720561004195,2.93262867,3073.4,3073.3,1.183]
[1720561005049,4.02484905,3073.4,3073.3,1.183]
[1720561005241,2.93262867,3073.4,3073.3,1.183]
[1720561007177,2.93305123,3073.4,3073.3,1.183]
[1720561007378,1.23345248,3073.4,3073.3,1.183]
[1720561007673,2.93305123,3073.4,3073.3,1.183]
[1720561007852,1.23345248,3073.4,3073.3,1.183]
[1720561008992,1.23345248,3073.4,3073.3,3.5007]
[1720561009289,1.12745658,3073.4,3073.3,3.85077]
[1720561009857,1.12727379,3073.4,3073.3,3.85077]
[1720561010578,1.12728271,3073.4,3073.3,3.85077]
[1720561010782,1.69928216,3074.0,3073.3,3.85077]
[1720561011010,1.69928216,3074.0,3073.6,1.183]
[1720561011011,1.23327005,3073.9,3073.6,1.183]
[1720561011162,1.23327005,3073.8,3073.6,1.183]
[1720561011491,1.23327005,3073.7,3073.6,1.183]
[1720561012248,1.23327005,3073.7,3073.6,3.6277]
[1720561013081,1.23327005,3073.7,3073.6,3.99047]
[1720561013282,1.12725966,3073.7,3073.6,3.99047]
[1720561013686,2.3903,3074.5,3073.6,3.99047]
[1720561013979,1.69852282,3074.2,3073.8,1.183]
[1720561014182,1.78322743,3074.1,3073.8,1.183]
[1720561014481,1.23322743,3074.0,3073.8,1.183]
[1720561014685,1.23322743,3073.9,3073.8,1.183]
[1720561014895,1.23322671,3073.9,3073.8,1.183]
[1720561017183,1.23322965,3073.9,3073.8,1.183]
[1720561017373,1.23322965,3073.9,3073.8,3.80537]
[1720561017561,1.12720588,3073.9,3073.8,3.80537]
[1720561020606,1.12713411,3073.9,3073.8,7.05867]
[1720561020960,1.69737999,3074.5,3073.9,3.25314]
[1720561021194,1.23314955,3074.4,3074.2,1.183]
[1720561021394,1.23314955,3074.3,3074.2,1.183]
[1720561021802,1.12711768,3074.3,3074.2,1.183]
[1720561022097,1.23317038,3074.3,3074.2,1.626608]
[1720561022520,1.12711768,3074.3,3074.2,1.626608]
[1720561023029,1.69737999,3074.7,3074.2,1.626608]
[1720561023226,1.12705897,3074.3,3074.2,1.626608]
[1720561023538,2.3694,3074.8,3074.2,3.932208]
[1720561023720,1.12704909,3074.3,3074.2,2.749208]
[1720561023920,1.12704909,3074.3,3074.2,3.932208]
[1720561024417,1.12703193,3074.3,3074.2,3.932208]
[1720561026376,0.55,3074.7,3074.2,3.932208]
[1720561026582,1.2330943,3074.6,3074.2,3.932208]
[1720561026803,0.55,3074.7,3074.2,3.932208]
[1720561026804,1.2330943,3074.5,3074.2,3.932208]
[1720561027004,1.12704282,3074.4,3074.2,3.932208]
[1720561027310,4.06620541,3074.8,3074.3,1.58272613]
[1720561027518,1.23309213,3074.7,3074.3,1.58272613]
[1720561027693,1.23309213,3074.6,3074.3,1.58272613]
[1720561028020,1.23309213,3074.5,3074.3,1.58272613]
[1720561028222,1.12703564,3074.4,3074.3,1.58272613]
[1720561029291,1.12703564,3074.4,3074.3,8.08826613]
[1720561029496,1.69680541,3075.4,3074.7,5.55309]
[1720561029713,0.5247092,3075.7,3075.3,1.183]
[1720561029933,2.441,3075.8,3075.3,1.183]
[1720561029934,2.92976647,3075.6,3075.3,1.183]
[1720561030107,1.23283981,3075.5,3075.3,1.183]
[1720561030308,1.23283981,3075.4,3075.3,1.183]
[1720561031439,0.34048944,3075.8,3075.3,1.183]
[1720561031650,0.34048944,3075.8,3075.3,0.06502732]
[1720561031651,1.1266381,3075.7,3075.3,0.06502732]
[1720561031943,0.34048944,3075.8,3075.6,1.183]
[1720561032144,1.12657867,3075.7,3075.6,1.183]
[1720561032303,2.441,3076.1,3075.6,1.183]
[1720561032504,1.12655491,3076.0,3075.8,1.183]
[1720561032747,1.12655491,3075.9,3075.8,1.183]
[1720561032918,2.441,3076.1,3075.8,1.183]
[1720561033125,1.12654825,3076.0,3075.8,1.183]
[1720561033430,1.12654799,3075.9,3075.8,1.183]
[1720561033619,2.441,3076.1,3075.8,1.183]
[1720561033818,1.12654695,3076.0,3075.8,1.183]
[1720561034022,2.83063186,3076.4,3075.8,1.183]
[1720561034216,4.78264537,3076.3,3075.8,1.183]
[1720561034431,1.12654052,3076.2,3075.8,1.183]
[1720561034743,0.55,3076.1,3075.8,1.183]
[1720561034917,1.12654052,3076.0,3075.8,1.183]
[1720561035118,1.12654052,3076.2,3075.9,1.183]
[1720561035336,1.12654052,3076.1,3075.7,5.70446]
[1720561035536,3.0,3076.5,3076.1,1.183]
[1720561035723,1.12644492,3076.4,3076.1,1.183]
[1720561035926,1.12644492,3076.3,3076.1,1.183]
[1720561036128,2.4901,3076.6,3076.1,1.183]
[1720561036323,2.4901,3076.6,3076.3,1.183]
[1720561036527,1.12643066,3076.5,3076.3,1.183]
[1720561036846,2.4901,3076.6,3076.3,1.183]
[1720561037009,1.12641504,3076.5,3076.3,1.183]
[1720561037210,1.12641504,3076.4,3076.3,1.183]
[1720561037416,2.4901,3076.6,3076.3,1.183]
[1720561037617,1.12641363,3076.5,3076.3,1.183]
[1720561037830,2.4901,3076.6,3076.3,1.183]
[1720561038031,1.12641135,3076.5,3076.3,1.183]
[1720561038230,2.4901,3076.6,3076.3,1.183]
[1720561038432,1.12641129,3076.5,3076.3,1.183]
[1720561038647,0.34051183,3076.8,3076.3,1.183]
[1720561038847,1.676348,3076.7,3076.3,1.183]
[1720561039026,1.126348,3076.6,3076.3,1.183]
[1720561039658,0.55,3076.7,3076.3,1.183]
[1720561039960,1.1263538,3076.6,3076.3,1.183]
[1720561040252,0.55,3076.7,3076.3,1.183]
[1720561040640,1.12637282,3076.6,3076.3,1.183]
[1720561040842,0.55,3076.7,3076.3,1.183]
[1720561041077,1.12637428,3076.6,3076.3,1.183]
[1720561041258,0.55,3076.7,3076.3,1.183]
[1720561042171,1.12637108,3076.6,3076.3,1.183]
[1720561042349,0.55,3076.7,3076.3,1.183]
[1720561043485,3.34051183,3076.8,3076.3,1.183]
[1720561043486,0.34051183,3076.8,3076.3,1.183]
[1720561043626,0.34051183,3076.8,3076.5,1.183]
[1720561043826,0.34051183,3076.8,3076.6,1.183]
[1720561045061,3.0,3077.1,3076.6,1.183]
[1720561045375,2.469,3077.2,3076.6,1.183]
[1720561045547,1.67621381,3077.1,3076.6,1.183]
[1720561045747,3.89050962,3077.1,3076.6,1.183]
[1720561046678,1.12620768,3077.0,3076.6,1.183]
[1720561046845,4.12620768,3077.0,3076.6,1.183]
[1720561047045,3.0,3077.0,3076.6,1.183]
[1720561047261,3.89050962,3077.1,3076.6,1.183]
[1720561047434,1.12624814,3077.0,3076.6,1.183]
[1720561047744,3.89050962,3077.1,3076.6,1.183]
[1720561047947,1.12624795,3077.0,3076.6,1.183]
[1720561048151,3.89050962,3077.1,3076.6,1.183]
[1720561048379,1.12624823,3077.0,3076.8,1.183]
[1720561048608,3.89050962,3077.1,3076.8,1.183]
[1720561048960,1.12624775,3077.0,3076.8,1.183]
[1720561049283,3.89050962,3077.1,3076.8,1.183]
[1720561049447,1.12621931,3077.0,3076.8,1.183]
[1720561049652,4.12621931,3077.0,3076.8,1.183]
[1720561049847,3.0,3077.0,3076.8,1.183]
[1720561050180,0.89050962,3077.1,3076.8,1.183]
[1720561051931,0.34050962,3077.1,3076.4,2.4273]
[1720561052133,3.0,3077.4,3076.4,2.4273]
[1720561052134,3.0,3077.4,3077.0,1.183]
[1720561052388,1.67612568,3077.3,3077.0,1.183]
[1720561052587,8.643,3078.2,3077.0,1.183]
[1720561052588,2.3361,3078.1,3077.0,1.183]
[1720561052792,1.12606169,3078.0,3077.0,1.183]
[1720561052954,1.46657746,3078.0,3077.2,1.183]
[1720561053157,1.12604433,3077.9,3077.2,1.183]
[1720561053607,0.34051577,3078.0,3077.2,1.183]
[1720561053766,1.48013433,3077.9,3077.2,1.183]
[1720561053965,1.67604275,3077.8,3077.2,1.183]
[1720561054164,1.12604275,3077.7,3077.2,1.183]
[1720561054368,0.55,3077.8,3077.2,1.183]
[1720561054369,1.67604275,3077.6,3077.2,1.183]
[1720561054601,1.67604275,3077.5,3077.2,1.183]
[1720561054907,3.55,3077.8,3077.2,1.183]
[1720561055094,4.51644805,3077.7,3077.2,1.183]
[1720561055270,1.67603889,3077.6,3077.2,1.183]
[1720561055469,1.12603889,3077.5,3077.2,1.183]
[1720561056504,0.55,3077.6,3077.2,1.183]
[1720561056680,1.12603158,3077.5,3077.2,1.183]
[1720561058295,1.12603158,3077.7,3077.2,1.183]
[1720561058607,1.12603158,3077.6,3077.2,1.183]
[1720561058784,1.12603158,3077.5,3077.2,1.183]
[1720561058968,1.12603158,3077.4,3077.2,1.183]
[1720561059166,1.12603158,3077.3,3077.2,1.183]
[1720561059901,1.12598379,3077.3,3077.2,1.183]
[1720561061490,1.12598379,3077.3,3076.6,2.3658]
[1720561061695,1.12598379,3077.2,3076.6,2.7174618]
[1720561061895,1.12598379,3077.5,3076.6,2.3658]
[1720561062092,1.12598379,3077.1,3076.6,2.3658]
[1720561062322,3.0,3077.6,3076.3,7.70518]
[1720561062323,1.12598379,3077.0,3076.7,1.183]
[1720561062499,1.12598379,3077.3,3076.7,1.183]
[1720561062700,0.55,3077.2,3076.7,1.183]
[1720561062894,0.55,3077.2,3076.3,9.7501]
[1720561062895,1.12598379,3077.1,3076.3,9.7501]
[1720561063109,0.55,3077.0,3076.4,1.183]
[1720561063322,1.12632522,3076.9,3076.4,1.183]
[1720561063527,1.31071758,3076.9,3076.4,1.183]
[1720561063700,1.12633857,3076.8,3076.4,1.183]
[1720561064021,1.12633857,3076.7,3076.4,1.183]
[1720561064184,1.12633857,3076.6,3076.4,1.183]
[1720561064384,1.12633857,3076.5,3076.4,1.183]
[1720561065285,1.12633857,3076.5,3075.6,10.72131]
[1720561065286,1.12633857,3076.5,3075.6,7.47]
[1720561065482,1.183,3076.9,3075.6,1.183]
[1720561065483,2.483,3076.3,3075.6,1.183]
[1720561065737,1.54227243,3076.2,3075.6,1.183]
[1720561065931,1.12633857,3076.1,3075.6,1.183]
[1720561066085,1.12633857,3076.1,3074.5,7.47]
[1720561066086,5.30933857,3076.1,3074.6,2.3071]
[1720561066283,2.75349886,3076.0,3075.0,1.183]
[1720561066490,4.12682155,3075.9,3075.0,1.183]
[1720561066688,1.67682155,3075.8,3074.6,2.3071]
[1720561066921,1.57940185,3075.7,3074.6,2.3071]